bitfinex-derivatives/quotes_BTCF0:USTF0_20251216
["timestamp","ask_amount","ask_price","bid_price","bid_amount"]
[1765898336558,0.0114801,87126.0,87121.0,0.0114806]
[1765898336855,0.2943301,87126.0,87125.0,0.3608]
[1765898337076,0.0688397,87179.0,87136.0,0.14015]
[1765898337077,0.0114764,87155.0,87136.0,0.14015]
[1765898337354,0.011477,87150.0,87137.0,0.6501487]
[1765898337557,0.00010938,87146.0,87137.0,0.6501487]
[1765898337754,0.00010938,87146.0,87145.0,0.13772]
[1765898337948,0.00010938,87146.0,87145.0,0.63867]
[1765898338645,0.00010938,87146.0,87145.0,0.49852]
[1765898338847,0.00010938,87146.0,87145.0,0.3608]
[1765898339247,0.00010938,87146.0,87145.0,0.63867]
[1765898339649,0.00010938,87146.0,87145.0,0.49852]
[1765898339848,0.00210938,87146.0,87145.0,0.49852]
[1765898340260,0.00210938,87146.0,87137.0,0.3608]
[1765898340261,0.2943285,87138.0,87137.0,0.3608]
[1765898340444,0.28285,87129.0,87128.0,0.00017222]
[1765898340955,0.0114788,87136.0,87128.0,0.00017222]
[1765898341157,0.0114781,87141.0,87135.0,0.3722789]
[1765898341351,0.0114786,87138.0,87135.0,0.3608]
[1765898341555,0.14443,87136.0,87135.0,0.3608]
[1765898341747,0.0114785,87138.0,87135.0,0.3608]
[1765898341957,0.28285,87136.0,87135.0,0.3608]
[1765898342255,0.2943297,87129.0,87128.0,0.00017222]
[1765898342446,0.2973297,87129.0,87128.0,0.00017222]
[1765898342846,0.08389,87142.0,87128.0,0.00017222]
[1765898343052,0.08389,87142.0,87141.0,0.0114781]
[1765898343253,0.00010938,87146.0,87145.0,0.0114776]
[1765898343460,0.00010938,87146.0,87145.0,0.2893476]
[1765898343751,0.00010938,87146.0,87145.0,0.0114776]
[1765898343954,0.00010938,87146.0,87145.0,0.1421376]
[1765898344250,0.2702,87141.0,87140.0,0.3608]
[1765898344848,0.2702,87141.0,87091.0,0.12687375]
[1765898344849,0.2702,87129.0,87124.0,0.3608]
[1765898345256,0.2702,87129.0,87118.0,0.3608]
[1765898345852,0.2702,87129.0,87111.0,0.3608]
[1765898346058,0.2702,87129.0,87119.0,0.011481]
[1765898346449,0.2732,87129.0,87117.0,0.0114812]
[1765898346654,0.2762,87129.0,87112.0,0.0114818]
[1765898346855,0.2762,87129.0,87111.0,0.3608]
[1765898346856,0.2762,87129.0,87115.0,0.0114815]
[1765898347058,0.281682,87112.0,87111.0,0.3608]
[1765898347257,0.2702,87112.0,87111.0,0.3608]
[1765898347667,0.29159823,87130.0,87118.0,0.0114811]
[1765898348058,0.0114805,87124.0,87115.0,0.00017222]
[1765898348362,0.005,87129.0,87126.0,0.01148]
[1765898348564,0.005,87129.0,87128.0,0.62143]
[1765898348565,0.008,87129.0,87128.0,0.62143]
[1765898349068,0.00017222,87132.0,87131.0,0.26063]
[1765898349269,2.22e-06,87132.0,87131.0,0.26063]
[1765898349567,0.0114762,87156.0,87154.0,0.0114764]
[1765898349757,0.0114762,87156.0,87133.0,0.0229584]
[1765898349758,0.0114762,87156.0,87150.0,0.0114769]
[1765898350060,0.0114764,87154.0,87153.0,0.0114765]
[1765898350263,0.0114768,87152.0,87150.0,0.0114769]
[1765898350460,0.08137,87159.0,87146.0,0.3608]
[1765898350661,0.12991,87147.0,87146.0,0.3608]
[1765898350863,0.12991,87147.0,87146.0,0.3722775]
[1765898351067,0.73216,87155.0,87154.0,0.0114764]
[1765898351262,0.73216,87155.0,87154.0,0.3722764]
[1765898351464,0.0114773,87148.0,87145.0,0.0114776]
[1765898351668,0.0114764,87154.0,87146.0,0.3608]
[1765898351860,0.0114768,87152.0,87149.0,0.0114769]
[1765898352262,0.0114764,87154.0,87146.0,0.3608]
[1765898352462,0.002,87152.0,87151.0,0.2721068]
[1765898352667,0.002,87152.0,87151.0,0.6329068]
[1765898352868,0.000109,87160.0,87159.0,0.0114758]
[1765898353369,0.000109,87160.0,87151.0,0.3608]
[1765898353570,0.2702,87152.0,87151.0,0.3608]
[1765898353756,0.2712,87152.0,87151.0,0.3608]
[1765898354363,0.2712,87152.0,87151.0,0.3722768]
[1765898354567,0.001,87152.0,87151.0,0.3722768]
[1765898354763,0.001,87152.0,87151.0,0.6329068]
[1765898355071,0.13091,87152.0,87151.0,0.3722768]
[1765898355372,0.002109,87160.0,87159.0,0.0114758]
[1765898355758,0.08137,87159.0,87151.0,0.3608]
[1765898355961,0.2826767,87152.0,87151.0,0.3608]
[1765898356162,0.2826767,87152.0,87142.0,0.00017211]
[1765898356163,0.0114779,87143.0,87142.0,0.00017211]
[1765898356569,0.1413879,87143.0,87142.0,0.00017211]
[1765898357566,0.3608,87151.0,87142.0,0.00017211]
[1765898357567,0.3608,87151.0,87150.0,0.2721069]
[1765898357775,0.002,87152.0,87151.0,0.26063]
[1765898358273,0.001,87152.0,87151.0,0.26063]
[1765898358670,0.12991,87148.0,87147.0,0.0114773]
[1765898359175,0.12991,87148.0,87146.0,0.3608]
[1765898359176,0.0948468,87152.0,87151.0,0.0114768]
[1765898359371,0.0124768,87152.0,87151.0,0.0114768]
[1765898359579,0.2816773,87149.0,87148.0,0.0114772]
[1765898359872,0.1977312,87160.0,87147.0,0.2721073]
[1765898359873,0.002,87148.0,87147.0,0.2721073]
[1765898360071,0.13191,87148.0,87147.0,0.0114773]
[1765898360274,0.002,87148.0,87147.0,0.0114773]
[1765898360579,0.003,87148.0,87147.0,0.2721073]
[1765898361362,0.001,87148.0,87147.0,0.2721073]
[1765898361565,0.12991,87147.0,87146.0,0.3608]
[1765898361863,0.2816779,87143.0,87142.0,0.00017211]
[1765898362266,0.2816779,87143.0,87142.0,2.11e-06]
[1765898362471,0.6816779,87143.0,87142.0,2.11e-06]
[1765898362970,0.2702,87110.0,87109.0,0.3608]
[1765898363372,0.2702,87110.0,87098.0,0.0114838]
[1765898363373,0.0114836,87100.0,87098.0,0.3608]
[1765898363576,0.2702,87099.0,87098.0,0.3608]
[1765898363885,0.2702,87092.0,87091.0,0.3722847]
[1765898364075,0.35157,87091.0,87090.0,0.00017221]
[1765898364379,0.0114842,87095.0,87093.0,0.0114843]
[1765898364582,0.0114845,87093.0,87090.0,0.00017221]
[1765898364778,0.3608,87099.0,87090.0,0.00017221]
[1765898364980,0.0114838,87098.0,87096.0,0.011484]
[1765898365171,0.0114832,87103.0,87102.0,0.0114833]
[1765898365370,0.2702,87095.0,87094.0,0.0114842]
[1765898365981,0.2702,87091.0,87090.0,0.00017221]
[1765898366179,0.35157,87091.0,87090.0,0.00017221]
[1765898366377,0.35157,87091.0,87090.0,0.37245711]
[1765898366582,0.002,87099.0,87098.0,0.2721138]
[1765898366783,0.72808,87105.0,87104.0,0.011483]
[1765898367281,0.1976222,87114.0,87104.0,0.011483]
[1765898367478,0.1976222,87114.0,87106.0,0.3608]
[1765898367681,0.27037221,87107.0,87106.0,0.3608]
[1765898367881,0.00017221,87107.0,87106.0,0.3722827]
[1765898368090,0.12991,87099.0,87097.0,0.3608]
[1765898368286,0.46799441,87107.0,87106.0,0.0114827]
[1765898368589,0.13008221,87107.0,87106.0,0.0114827]
[1765898368890,0.00017221,87107.0,87106.0,0.5029427]
[1765898369086,0.00217221,87107.0,87106.0,0.5029427]
[1765898369389,0.4678222,87116.0,87115.0,0.0114816]
[1765898369686,0.0114806,87123.0,87121.0,0.0114806]
[1765898369883,0.72796,87124.0,87121.0,0.0114806]
[1765898370487,0.12991,87122.0,87121.0,0.0114806]
[1765898370790,0.72796,87124.0,87121.0,0.0114806]
[1765898370992,0.002,87123.0,87121.0,0.0114806]
[1765898371489,0.002,87123.0,87118.0,0.0114811]
[1765898371490,0.0114809,87120.0,87118.0,0.0114811]
[1765898371793,0.2702,87117.0,87116.0,0.0114814]
[1765898371983,0.2702,87115.0,87114.0,0.36097221]
[1765898372576,0.2702,87115.0,87114.0,0.00017221]
[1765898373286,0.2712,87115.0,87114.0,0.00017221]
[1765898373683,0.2732,87115.0,87114.0,0.00017221]
[1765898374196,0.004,87115.0,87114.0,0.36097221]
[1765898375082,0.004,87115.0,87114.0,0.65833221]
[1765898375687,0.3608,87156.0,87127.0,0.0573998]
[1765898375878,0.3608,87177.0,87163.0,0.29736]
[1765898376079,0.0114738,87174.0,87170.0,0.0114743]
[1765898376290,0.0114738,87174.0,87162.0,0.3608]
[1765898376291,0.39912,87187.0,87177.0,0.29736]
[1765898376492,0.18386553,87193.0,87177.0,0.29736]
[1765898376493,3e-08,87178.0,87177.0,0.65816]
[1765898376691,3e-08,87178.0,87177.0,1.05816]
[1765898376878,0.89856,87214.0,87207.0,0.0114694]
[1765898377190,0.53776,87214.0,87209.0,0.0114691]
[1765898377387,0.53776,87214.0,87205.0,0.3608]
[1765898377388,0.00229312,87218.0,87217.0,0.29593]
[1765898378786,0.001,87218.0,87215.0,0.3608]
[1765898379295,0.001,87218.0,87216.0,0.0114683]
[1765898379594,0.002,87218.0,87216.0,0.0114683]
[1765898379994,0.001,87218.0,87216.0,0.0114683]
[1765898380290,0.28809,87216.0,87215.0,0.3618]
[1765898380692,0.0114675,87222.0,87215.0,0.3618]
[1765898380884,0.19736902,87225.0,87216.0,0.0114683]
[1765898381086,0.20883622,87225.0,87215.0,0.3722684]
[1765898381291,0.0114676,87222.0,87215.0,0.3722684]
[1765898382391,0.19836902,87225.0,87215.0,0.3608]
[1765898382600,0.001,87222.0,87220.0,0.0114677]
[1765898382786,0.001,87222.0,87216.0,0.0114682]
[1765898383090,0.19836902,87225.0,87219.0,0.0114678]
[1765898383294,0.0114669,87227.0,87219.0,0.0114678]
[1765898383598,0.001,87222.0,87219.0,0.0114678]
[1765898383797,0.002,87222.0,87219.0,0.0114678]
[1765898384092,0.002,87222.0,87218.0,0.0114679]
[1765898384290,0.001,87222.0,87221.0,0.1544]
[1765898384494,0.001,87222.0,87221.0,0.29593]
[1765898384697,0.001,87225.0,87224.0,0.29593]
[1765898385094,0.19736902,87234.0,87221.0,0.3608]
[1765898385397,0.19736902,87234.0,87233.0,0.1544]
[1765898385599,0.19736902,87243.0,87228.0,0.3608]
[1765898385788,0.0114639,87249.0,87237.0,0.3608]
[1765898386186,0.3722627,87259.0,87246.0,0.3608]
[1765898386396,0.3608,87259.0,87246.0,0.3608]
[1765898386700,0.0114633,87254.0,87246.0,0.3722643]
[1765898387293,0.0114633,87254.0,87246.0,0.3608]
[1765898387597,0.0114638,87250.0,87246.0,0.3608]
[1765898387791,0.0114638,87250.0,87243.0,0.00017197]
[1765898388097,0.19736902,87256.0,87243.0,0.00017197]
[1765898388098,0.28809,87244.0,87243.0,0.00017197]
[1765898388293,0.19736902,87256.0,87248.0,0.011464]
[1765898388494,0.19736902,87260.0,87256.0,0.011463]
[1765898388696,0.3608,87267.0,87257.0,0.29593]
[1765898389402,0.0114625,87260.0,87252.0,0.3608]
[1765898389593,0.55816902,87267.0,87257.0,0.0114629]
[1765898389794,0.0114618,87266.0,87257.0,0.0114629]
[1765898389999,0.08614,87261.0,87252.0,0.3722634]
[1765898390500,0.00329207,87258.0,87252.0,0.3722634]
[1765898390691,0.00329207,87258.0,87257.0,0.29593]
[1765898391096,0.00229207,87258.0,87257.0,0.29593]
[1765898391296,0.00329207,87258.0,87257.0,0.29593]
[1765898391488,0.19736902,87270.0,87255.0,0.011463]
[1765898391692,0.19736902,87270.0,87269.0,0.0114613]
[1765898391996,0.0114604,87276.0,87275.0,0.0114605]
[1765898392190,0.0114608,87273.0,87271.0,0.0114609]
[1765898392395,0.14444,87277.0,87272.0,0.0114608]
[1765898392597,0.22672787,87282.0,87272.0,0.0114609]
[1765898392791,0.20882862,87282.0,87278.0,0.0114601]
[1765898392993,0.72656,87284.0,87275.0,0.3608]
[1765898393198,0.0114604,87277.0,87275.0,0.3608]
[1765898393394,0.72656,87284.0,87275.0,0.3608]
[1765898393596,0.0114598,87281.0,87278.0,0.01146]
[1765898394799,0.002,87282.0,87281.0,0.0114597]
[1765898395006,0.0114603,87277.0,87275.0,0.3608]
[1765898395197,0.3608,87281.0,87276.0,0.0114603]
[1765898395393,0.14444,87270.0,87269.0,1.5]
[1765898395595,0.28809,87270.0,87269.0,1.5]
[1765898397000,0.0114622,87262.0,87260.0,0.0114625]
[1765898397307,0.2995522,87262.0,87260.0,0.0114625]
[1765898397502,0.002,87270.0,87269.0,0.0114613]
[1765898397895,0.003,87270.0,87261.0,1.50017197]
[1765898398098,0.28809,87263.0,87262.0,0.0114621]
[1765898398496,0.28809,87263.0,87262.0,1.5]
[1765898398902,0.2995522,87262.0,87261.0,0.00017197]
[1765898399216,0.2995522,87262.0,87230.0,0.19736902]
[1765898399217,0.2995547,87243.0,87242.0,0.0114648]
[1765898399503,0.2995547,87243.0,87242.0,1.5114648]
[1765898399699,0.0114644,87246.0,87245.0,0.0114644]
[1765898399894,0.1559047,87243.0,87242.0,1.5]
[1765898400095,0.0114654,87238.0,87237.0,0.0114654]
[1765898400301,0.3608,87248.0,87235.0,0.0114657]
[1765898400302,0.14444,87236.0,87235.0,0.0114657]
[1765898400494,0.28809,87239.0,87238.0,0.0114652]
[1765898400697,0.001,87243.0,87242.0,0.29593]
[1765898401406,0.0124648,87243.0,87241.0,0.0114648]
[1765898401799,0.2995552,87239.0,87238.0,1.5]
[1765898401999,0.0114656,87236.0,87234.0,0.0114659]
[1765898402294,0.0114656,87236.0,87215.0,0.0114683]
[1765898402295,0.28809,87230.0,87229.0,7e-08]
[1765898402494,0.0573343,87227.0,87188.0,0.3608]
[1765898402699,0.19736902,87198.0,87194.0,0.0114711]
[1765898402900,0.19736902,87204.0,87190.0,0.3608]
[1765898403101,0.0114704,87200.0,87193.0,0.0114712]
[1765898403310,0.20883892,87204.0,87196.0,0.0114708]
[1765898403507,0.0114703,87201.0,87196.0,0.0114708]
[1765898403711,0.19736902,87204.0,87199.0,0.0114704]
[1765898404116,0.19736902,87204.0,87195.0,0.0114709]
[1765898404801,0.0114707,87198.0,87192.0,0.0114714]
[1765898405113,0.3722705,87199.0,87192.0,0.0114714]
[1765898405312,0.4704,87205.0,87191.0,0.00017199]
[1765898405501,0.001,87204.0,87203.0,0.31243]
[1765898405814,0.003,87204.0,87203.0,0.67323]
[1765898406014,0.002,87204.0,87203.0,0.67323]
[1765898406311,0.002,87204.0,87203.0,0.31243]
[1765898406506,0.00017199,87209.0,87208.0,0.3124293]
[1765898406720,0.00017199,87209.0,87208.0,0.30096]
[1765898407910,0.3608,87246.0,87240.0,0.0114651]
[1765898408104,0.0114644,87245.0,87243.0,0.0114647]
[1765898408307,0.2548,87246.0,87243.0,0.0114647]
[1765898408509,0.0114648,87242.0,87234.0,0.3608]
[1765898408916,0.2548,87246.0,87244.0,0.0114644]
[1765898409407,0.2548,87246.0,87234.0,0.3608]
[1765898409408,0.0114643,87246.0,87243.0,0.0114647]
[1765898409610,0.08472,87244.0,87229.0,0.00017199]
[1765898409813,0.3608,87236.0,87233.0,0.011466]
[1765898410013,0.08472,87244.0,87229.0,0.00017199]
[1765898410014,0.2844,87230.0,87229.0,0.00017199]
[1765898410512,0.2844,87230.0,87229.0,0.01163849]
[1765898410817,0.2844,87230.0,87229.0,0.00017199]
[1765898411212,0.2864,87230.0,87229.0,0.00017199]
[1765898411714,0.002,87230.0,87229.0,0.15148199]
[1765898411915,0.002,87230.0,87229.0,0.30113199]
[1765898412126,0.00017112,87247.0,87246.0,0.15131]
[1765898412310,0.00017112,87247.0,87246.0,0.1627743]
[1765898412822,0.00017112,87247.0,87246.0,0.3124243]
[1765898413213,0.19736902,87256.0,87255.0,0.3124231]
[1765898413407,0.0114623,87262.0,87261.0,0.15131]
[1765898413612,0.0114642,87247.0,87244.0,0.3608]
[1765898413920,0.0114637,87251.0,87249.0,0.0114638]
[1765898414118,0.0114637,87251.0,87244.0,0.3608]
[1765898414426,0.19736902,87254.0,87253.0,0.15131]
[1765898414624,0.3608,87259.0,87250.0,0.0114637]
[1765898414920,0.0174642,87247.0,87244.0,0.3608]
[1765898415220,0.0174642,87247.0,87244.0,0.3722644]
[1765898415419,0.0144642,87247.0,87244.0,0.3722644]
[1765898415615,0.0144637,87251.0,87250.0,0.0114638]
[1765898415816,0.003,87251.0,87250.0,0.0114638]
[1765898416021,0.003,87251.0,87246.0,0.0114642]
[1765898416212,0.0114638,87250.0,87249.0,0.15131]
[1765898416609,0.0114643,87247.0,87244.0,0.3722645]
[1765898417121,0.0114643,87247.0,87246.0,0.15131]
[1765898417314,0.0144643,87247.0,87246.0,0.15131]
[1765898417627,0.2844,87245.0,87239.0,0.00017199]
[1765898417923,0.2844,87240.0,87239.0,0.00017199]
[1765898418710,0.6452,87240.0,87239.0,0.00017199]
[1765898419327,0.0114651,87241.0,87240.0,0.30096]
[1765898419513,0.003,87247.0,87246.0,0.1627743]
[1765898419712,0.003,87247.0,87246.0,0.6732243]
[1765898420018,0.0114633,87254.0,87253.0,0.15131]
[1765898420218,0.0114642,87247.0,87246.0,0.3608]
[1765898420424,0.0114634,87253.0,87251.0,0.0114636]
[1765898420721,0.2844,87247.0,87246.0,0.3608]
[1765898420926,0.0114651,87240.0,87239.0,0.31259709]
[1765898421111,0.003,87240.0,87239.0,0.31259719]
[1765898421621,0.28931448,87250.0,87239.0,0.00017199]
[1765898421809,0.28931448,87250.0,87247.0,0.0114641]
[1765898421810,0.30077838,87250.0,87247.0,0.0114641]
[1765898422015,0.0114639,87250.0,87248.0,0.3722639]
[1765898422214,0.0114639,87250.0,87249.0,0.15131]
[1765898422627,0.0114648,87243.0,87240.0,0.3608]
[1765898423213,0.0114648,87243.0,87240.0,0.372265]
[1765898423417,0.0114648,87243.0,87242.0,0.15131]
[1765898423624,0.0114648,87243.0,87242.0,0.30096]
[1765898424217,0.0134648,87243.0,87242.0,0.30096]
[1765898424730,0.0154648,87243.0,87242.0,0.30096]
[1765898424929,0.0134648,87243.0,87242.0,0.30096]
[1765898425126,0.0164648,87243.0,87242.0,0.30096]
[1765898425328,0.14652,87241.0,87240.0,0.3608]
[1765898425528,0.2958651,87240.0,87239.0,0.00017199]
[1765898425737,0.005,87243.0,87242.0,0.30096]
[1765898426229,3.8e-06,87243.0,87242.0,0.30096]
[1765898426428,0.3608,87258.0,87257.0,0.3124229]
[1765898426629,0.72608,87259.0,87258.0,0.30096]
[1765898426825,0.7375426,87259.0,87258.0,0.30096]
[1765898427022,0.3722614,87268.0,87267.0,0.15131]
[1765898427424,0.3608,87268.0,87267.0,0.30096]
[1765898427624,0.3722604,87276.0,87275.0,0.30096]
[1765898427822,0.0114617,87266.0,87265.0,0.3124218]
[1765898428029,0.0114607,87274.0,87261.0,0.0114623]
[1765898428222,0.0114621,87264.0,87263.0,0.011462]
[1765898428530,0.0114623,87261.0,87260.0,0.3722624]
[1765898428830,0.0114623,87261.0,87260.0,0.51211]
[1765898429033,0.0114623,87261.0,87260.0,0.15131]
[1765898429336,0.0114623,87261.0,87260.0,0.30096]
[1765898429525,0.011462,87264.0,87263.0,0.15131]
[1765898429828,0.0114623,87261.0,87260.0,0.66176]
[1765898430433,0.3608,87269.0,87268.0,0.3124214]
[1765898430631,0.0114619,87265.0,87264.0,0.0114618]
[1765898431024,0.0114619,87265.0,87264.0,0.1627718]
[1765898431227,0.1579819,87265.0,87262.0,0.0114621]
[1765898431836,0.1629819,87265.0,87262.0,0.0114621]
[1765898432827,0.0114623,87261.0,87260.0,0.15131]
[1765898433026,0.0114623,87261.0,87259.0,0.00017189]
[1765898433027,0.2844,87260.0,87259.0,0.00017189]
[1765898433227,0.0114623,87261.0,87260.0,0.30096]
[1765898433636,0.01,87265.0,87264.0,0.27546]
[1765898433936,0.005,87265.0,87264.0,0.27546]
[1765898434334,0.004,87265.0,87259.0,0.36097189]
[1765898434640,0.009,87265.0,87264.0,0.2944119]
[1765898434939,0.005,87265.0,87264.0,0.2944119]
[1765898435239,0.01,87265.0,87264.0,0.2944119]
[1765898435627,0.005,87265.0,87264.0,0.2944119]
[1765898435831,0.009,87265.0,87264.0,0.2944119]
[1765898436042,0.004,87265.0,87264.0,0.28295]
[1765898436232,0.004,87265.0,87264.0,0.1392]
[1765898436749,0.011459,87287.0,87286.0,0.1392]
[1765898436950,0.0114589,87290.0,87289.0,0.1506586]
[1765898437251,0.3722589,87290.0,87289.0,0.1392]
[1765898437452,0.27454,87245.0,87244.0,0.3608]
[1765898437752,0.2251045,87245.0,87237.0,0.3608]
[1765898437938,0.0114649,87242.0,87239.0,0.0114652]
[1765898438140,0.0114652,87239.0,87238.0,0.3608]
[1765898438357,0.72592,87239.0,87238.0,0.6552154]
[1765898438542,0.3608,87251.0,87249.0,0.1506639]
[1765898438743,0.3608,87261.0,87258.0,0.28295]
[1765898438744,0.01163414,87259.0,87258.0,0.28295]
[1765898439047,0.0114633,87254.0,87253.0,0.2944133]
[1765898439245,0.03571466,87258.0,87253.0,0.2944133]
[1765898439446,0.53813186,87257.0,87256.0,0.294413]
[1765898439656,0.01163424,87259.0,87258.0,0.28295]
[1765898439838,0.85151154,87259.0,87258.0,0.001]
[1765898440042,0.88722506,87259.0,87258.0,0.001]
[1765898440252,0.61268506,87259.0,87258.0,0.1516627]
[1765898440453,0.02442246,87259.0,87258.0,0.2954127]
[1765898440751,0.02442246,87259.0,87258.0,0.2944127]
[1765898440949,0.02442246,87259.0,87258.0,0.6552127]
[1765898441652,0.02442246,87259.0,87258.0,0.6562127]
[1765898441653,0.00017154,87259.0,87258.0,0.6562127]
[1765898441856,0.02443698,87259.0,87258.0,0.6562127]
[1765898442054,0.0244354,87259.0,87258.0,0.6562127]
[1765898442356,0.0244354,87259.0,87258.0,0.6572127]
[1765898442357,0.00017154,87259.0,87258.0,0.6572127]
[1765898442554,0.3722592,87285.0,87284.0,0.28295]
[1765898442745,0.39651967,87285.0,87284.0,0.28295]
[1765898442945,0.03571967,87285.0,87284.0,0.28295]
[1765898443146,0.0114601,87279.0,87276.0,0.0114603]
[1765898443351,0.0114601,87279.0,87278.0,0.28295]
[1765898443546,0.28931448,87290.0,87270.0,0.28312189]
[1765898443547,0.011461,87271.0,87270.0,0.28312189]
[1765898443745,0.30077308,87290.0,87270.0,0.28312189]
[1765898443746,0.0114601,87279.0,87270.0,0.00017189]
[1765898443948,0.02425329,87278.0,87277.0,0.28295]
[1765898445351,0.02425329,87278.0,87277.0,0.1392]
[1765898445555,0.02425329,87278.0,87277.0,0.28295]
[1765898445763,0.06164766,87300.0,87299.0,0.28295]
[1765898445949,0.3608,87301.0,87300.0,0.28295]
[1765898445950,1.0981371,87301.0,87300.0,0.28295]
[1765898446151,1.12237409,87301.0,87300.0,0.28295]
[1765898446349,0.39649409,87301.0,87300.0,0.28295]
[1765898446646,0.03569409,87301.0,87300.0,0.2944072]
[1765898446854,0.03569409,87301.0,87300.0,0.28295]
[1765898448356,0.0114582,87293.0,87292.0,0.28295]
[1765898448763,0.1368,87292.0,87291.0,0.00017189]
[1765898449062,0.0114582,87293.0,87291.0,0.00017189]
[1765898449261,0.27454,87292.0,87291.0,0.00017189]
[1765898449463,0.1368,87292.0,87291.0,0.00017189]
[1765898449655,0.27454,87292.0,87291.0,0.00017189]
[1765898449856,0.63534,87292.0,87291.0,0.00017189]
[1765898450158,0.63534,87292.0,87291.0,0.29458029]
[1765898450159,0.02420706,87292.0,87291.0,0.29458029]
[1765898450361,0.31020198,87292.0,87291.0,0.00017189]
[1765898450865,0.0114615,87269.0,87268.0,0.28295]
[1765898451060,0.1368,87267.0,87266.0,0.3608]
[1765898451655,0.1368,87267.0,87266.0,0.3722617]
[1765898451860,0.0114615,87269.0,87266.0,0.3722617]
[1765898452059,0.0114609,87272.0,87271.0,0.0114608]
[1765898452266,0.72593189,87275.0,87274.0,0.1506606]
[1765898452463,0.75073512,87275.0,87274.0,0.2944106]
[1765898452667,0.75073512,87275.0,87274.0,0.28295]
[1765898452966,0.0114607,87274.0,87273.0,0.0114607]
[1765898453265,0.00017189,87275.0,87274.0,0.28295]
[1765898454061,0.0249791,87275.0,87274.0,0.28295]
[1765898454369,0.0249791,87275.0,87274.0,0.28395]
[1765898454555,0.00017189,87275.0,87274.0,0.28395]
[1765898455264,1.89e-06,87275.0,87274.0,0.28395]
[1765898455465,1.89e-06,87275.0,87274.0,0.28595]
[1765898456167,1.89e-06,87275.0,87274.0,0.28395]
[1765898456367,1.89e-06,87275.0,87274.0,0.28695]
[1765898456669,1.89e-06,87275.0,87274.0,0.28795]
[1765898457062,1.89e-06,87275.0,87274.0,0.28595]
[1765898457264,1.89e-06,87275.0,87274.0,0.28895]
[1765898457463,1.89e-06,87275.0,87274.0,0.68895]
[1765898457656,1.89e-06,87275.0,87274.0,0.28895]
[1765898459354,1.89e-06,87275.0,87274.0,0.68895]
[1765898460461,1.89e-06,87275.0,87274.0,0.68695]
[1765898460665,1.89e-06,87275.0,87274.0,1.40855]
[1765898460856,1.89e-06,87275.0,87274.0,1.00855]
[1765898461256,1.89e-06,87275.0,87274.0,0.006]
[1765898461257,0.27454189,87275.0,87274.0,0.006]
[1765898461472,0.2860026,87259.0,87258.0,0.00017189]
[1765898461661,0.03628009,87275.0,87258.0,0.00017189]
[1765898461662,0.46092189,87275.0,87270.0,0.14375]
[1765898461861,0.46092189,87275.0,87273.0,0.0114607]
[1765898461862,0.03628303,87274.0,87273.0,0.0114607]
[1765898462258,0.03628303,87274.0,87264.0,0.3608]
[1765898462259,0.02482203,87274.0,87264.0,0.0114619]
[1765898462459,0.02482203,87274.0,87258.0,0.00017189]
[1765898462460,0.27454,87259.0,87258.0,0.00017189]
[1765898462661,0.08731,87248.0,87228.0,0.3608]
[1765898462983,0.0114665,87230.0,87216.0,0.3608]
[1765898463267,0.0114677,87221.0,87218.0,0.0114679]
[1765898463466,0.0114677,87221.0,87216.0,0.3608]
[1765898463467,0.1368,87215.0,87214.0,0.0114684]
[1765898463667,0.0114685,87214.0,87208.0,0.0114692]
[1765898464577,0.2884794,87207.0,87206.0,0.36097199]
[1765898464873,9.184e-05,87215.0,87214.0,0.28503]
[1765898465067,9.184e-05,87215.0,87206.0,0.36097199]
[1765898465068,0.03635759,87215.0,87209.0,0.0114691]
[1765898465373,0.0114689,87212.0,87206.0,0.36097199]
[1765898465576,9.184e-05,87215.0,87207.0,0.0114694]
[1765898465773,0.3608,87213.0,87206.0,0.36097199]
[1765898465972,0.3608,87213.0,87207.0,0.0114694]
[1765898466170,0.0114688,87212.0,87211.0,0.001]
[1765898466469,0.2884788,87212.0,87211.0,0.001]
[1765898466669,0.27701,87207.0,87206.0,0.01164159]
[1765898466873,0.7258,87212.0,87210.0,0.011469]
[1765898467065,9.184e-05,87215.0,87210.0,0.011469]
[1765898467374,0.60864,87214.0,87210.0,0.011469]
[1765898467672,0.001,87212.0,87206.0,0.01164149]
[1765898467868,0.0114689,87211.0,87206.0,0.00017199]
[1765898468061,0.0124688,87212.0,87207.0,0.0114694]
[1765898468267,0.6201086,87214.0,87207.0,0.0114694]
[1765898468665,0.60864,87214.0,87206.0,0.00017199]
[1765898468865,0.60864,87214.0,87210.0,0.011469]
[1765898469066,0.0114687,87213.0,87209.0,0.0114691]
[1765898469267,0.0114691,87210.0,87206.0,0.00017199]
[1765898469466,0.0114691,87210.0,87207.0,0.0114694]
[1765898469661,9.184e-05,87215.0,87206.0,0.00017199]
[1765898469866,0.27701,87207.0,87206.0,0.00017199]
[1765898470077,0.0114687,87213.0,87209.0,0.0114691]
[1765898470375,9.184e-05,87215.0,87213.0,0.0114686]
[1765898471764,0.0114685,87214.0,87210.0,0.3608]
[1765898472071,0.0114685,87214.0,87211.0,0.0114689]
[1765898472277,9.184e-05,87215.0,87211.0,0.0114689]
[1765898472575,0.00109184,87215.0,87214.0,0.28503]
[1765898472961,0.2884789,87211.0,87210.0,0.3608]
[1765898473677,0.01156024,87215.0,87210.0,0.50206]
[1765898473978,9.184e-05,87215.0,87214.0,0.28503]
[1765898474170,9.184e-05,87215.0,87206.0,0.00017199]
[1765898474171,0.27701,87207.0,87206.0,0.00017199]
[1765898474475,0.27701,87207.0,87206.0,1.99e-06]
[1765898475066,0.67711148,87207.0,87206.0,1.99e-06]
[1765898475775,0.27711148,87207.0,87206.0,1.99e-06]
[1765898476167,0.30799679,87207.0,87206.0,1.99e-06]
[1765898476371,0.30999679,87207.0,87206.0,1.99e-06]
[1765898476575,0.30799679,87207.0,87206.0,1.99e-06]
[1765898476771,0.32146619,87207.0,87206.0,1.99e-06]
[1765898477077,0.00410148,87207.0,87179.0,0.0114731]
[1765898477376,0.4993,87199.0,87198.0,0.0114706]
[1765898477574,0.93668,87199.0,87198.0,0.0114706]
[1765898477771,0.93668,87199.0,87198.0,0.1527306]
[1765898477993,0.00427347,87207.0,87206.0,0.0114696]
[1765898478282,0.00427347,87207.0,87206.0,0.2964996]
[1765898478475,0.27701,87201.0,87200.0,0.3608]
[1765898478781,0.74896,87201.0,87194.0,0.0114711]
[1765898479075,0.3608,87195.0,87194.0,1.5114711]
[1765898479481,0.71964,87195.0,87194.0,1.5]